bitfinex/quotes_BTCUSD_20251104
["timestamp","ask_amount","ask_price","bid_price","bid_amount"]
[1762265227719,0.19234284,103990.0,103980.0,0.30851805]
[1762265227935,0.19234284,103990.0,103980.0,0.28928359]
[1762265228387,0.55483027,104000.0,103980.0,0.23980468]
[1762265228605,0.19285489,104000.0,103990.0,0.05429891]
[1762265229656,0.19385489,104000.0,103990.0,0.05429891]
[1762265229858,0.19385489,104000.0,103990.0,0.04947891]
[1762265229859,0.97214415,104000.0,103990.0,0.04947891]
[1762265230105,0.19234468,103980.0,103970.0,0.00482]
[1762265230316,0.19236318,103970.0,103960.0,0.29508693]
[1762265230542,0.19236318,103970.0,103960.0,0.38728584]
[1762265230752,0.19234468,103980.0,103970.0,0.24666209]
[1762265231182,0.19236318,103970.0,103960.0,0.19961168]
[1762265231393,0.19236318,103970.0,103960.0,0.09942891]
[1762265231599,0.19236318,103970.0,103960.0,0.10424891]
[1762265231833,0.19236318,103970.0,103960.0,0.00723]
[1762265232048,0.20857318,103970.0,103960.0,0.05670891]
[1762265232276,0.20857318,103970.0,103960.0,0.09942891]
[1762265232487,0.20857318,103970.0,103960.0,0.10442891]
[1762265232907,0.30314924,103970.0,103960.0,0.10442891]
[1762265233142,0.30314924,103970.0,103960.0,0.10342891]
[1762265233355,0.19236318,103970.0,103960.0,0.30063059]
[1762265233977,0.20857318,103970.0,103960.0,0.29881059]
[1762265234126,0.01621,103970.0,103960.0,0.29481059]
[1762265234349,0.20857318,103970.0,103960.0,0.29477059]
[1762265234582,1.04449894,103990.0,103970.0,0.19236318]
[1762265234583,0.01236,103990.0,103970.0,0.19236318]
[1762265234751,0.00049355,104000.0,103980.0,0.25907914]
[1762265234952,0.19280124,104000.0,103990.0,0.04947891]
[1762265235178,0.02477355,104000.0,103990.0,0.19232618]
[1762265235377,0.00049355,104000.0,103990.0,0.24180509]
[1762265235825,0.00049355,104000.0,103990.0,0.24662509]
[1762265236028,0.19280124,104000.0,103990.0,0.05429891]
[1762265236247,0.00193883,104000.0,103990.0,0.24280509]
[1762265236395,0.19424652,104000.0,103990.0,0.28556509]
[1762265236579,0.00193883,104000.0,103990.0,0.28556509]
[1762265237338,0.00193883,104000.0,103990.0,0.29038509]
[1762265237738,0.00193883,104000.0,103990.0,0.29520509]
[1762265237947,0.00193883,104000.0,103990.0,0.29038509]
[1762265238192,0.20999652,104000.0,103990.0,0.24280509]
[1762265238374,0.01768883,104000.0,103990.0,0.28552509]
[1762265238588,1.0276376,104000.0,103990.0,0.05047891]
[1762265238745,1.3676376,104000.0,103990.0,0.001]
[1762265239339,1.30897578,104000.0,103990.0,0.001]
[1762265240002,1.30897578,104000.0,103990.0,0.05047891]
[1762265240160,1.30897578,104000.0,103990.0,0.001]
[1762265240370,1.3179496,104000.0,103990.0,0.001]
[1762265240567,0.01091265,104000.0,103990.0,0.19814618]
[1762265240763,0.00193883,104000.0,103990.0,0.29416509]
[1762265241824,0.00193883,104000.0,103990.0,0.29616509]
[1762265242254,0.00193883,104000.0,103990.0,0.29916509]
[1762265242374,0.00193883,104000.0,103990.0,0.29716509]
[1762265242582,0.00193883,104000.0,103990.0,0.30116509]
[1762265244222,0.00193883,104000.0,103990.0,0.30116509]
[1762265245335,0.00193883,104000.0,103990.0,0.84116509]
[1762265246908,0.00193883,104000.0,103990.0,0.83816509]
[1762265247121,0.00193883,104000.0,103990.0,0.84216509]
[1762265247336,0.00193883,104000.0,103990.0,0.83816509]
[1762265247702,0.00193883,104000.0,103990.0,0.84416509]
[1762265247901,0.00193883,104000.0,103990.0,1.04416509]
[1762265248938,0.00193883,104000.0,103990.0,1.06416507]
[1762265249794,0.0004,104020.0,104010.0,0.5322892]
[1762265249961,0.0004,104020.0,104010.0,1.14482716]
[1762265249962,0.00088594,104020.0,104010.0,1.14482716]
[1762265250188,0.00088594,104020.0,104010.0,1.08016827]
[1762265250345,0.00088594,104020.0,104010.0,1.09016826]
[1762265250547,0.00088594,104020.0,104010.0,1.13964717]
[1762265250860,0.00088594,104020.0,104010.0,1.09016826]
[1762265251090,0.00088594,104020.0,104010.0,1.14264717]
[1762265251451,0.0004,104030.0,104020.0,0.53227071]
[1762265251655,0.0004,104030.0,104020.0,0.59138962]
[1762265252529,0.0004,104030.0,104020.0,0.59238962]
[1762265253358,0.0004,104030.0,104020.0,0.59438962]
[1762265255758,0.00112223,104030.0,104020.0,0.59438962]
[1762265258596,0.00112223,104030.0,104020.0,0.54491071]
[1762265258798,0.00112223,104030.0,104020.0,0.59438962]
[1762265259429,0.00112223,104030.0,104020.0,0.59338962]
[1762265259628,0.00112223,104030.0,104020.0,0.59138962]
[1762265260702,0.00112223,104030.0,104020.0,0.60138961]
[1762265260893,0.0004,104040.0,104030.0,0.99173113]
[1762265261100,0.0005457,104040.0,104030.0,1.1444702]
[1762265261505,0.00078638,104040.0,104030.0,1.1444702]
[1762265262924,0.00078638,104040.0,104030.0,0.93447021]
[1762265263682,0.00078638,104040.0,104030.0,0.73447021]
[1762265264300,0.00078638,104040.0,104030.0,0.8849913]
[1762265264504,0.00078638,104040.0,104030.0,0.93447021]
[1762265265575,0.00078638,104040.0,104030.0,0.73443021]
[1762265267463,0.00078638,104040.0,104030.0,0.93443021]
[1762265267678,0.00078638,104040.0,104030.0,0.9444302]
[1762265268325,0.00078638,104040.0,104030.0,0.95443019]
[1762265268948,0.00078638,104040.0,104030.0,0.9444302]
[1762265269157,0.00078638,104040.0,104030.0,0.95443019]
[1762265270611,0.00078638,104040.0,104030.0,0.9444302]
[1762265270820,0.00078638,104040.0,104030.0,0.95443019]
[1762265273155,0.00078638,104040.0,104030.0,1.10183019]
[1762265273368,0.00078638,104040.0,104030.0,1.0918302]
[1762265273607,0.00078638,104040.0,104030.0,1.10183019]
[1762265274911,0.00078638,104040.0,104030.0,1.0918302]
[1762265275123,0.00078638,104040.0,104030.0,1.08183021]
[1762265275749,0.00078638,104040.0,104030.0,1.28183021]
[1762265276147,0.00078638,104040.0,104030.0,1.08183021]
[1762265276351,0.00078638,104040.0,104030.0,1.28183021]
[1762265276563,0.00078638,104040.0,104030.0,0.54183021]
[1762265276954,0.00078638,104040.0,104030.0,0.88183021]
[1762265277158,0.00078638,104040.0,104030.0,0.8323513]
[1762265277362,0.00078638,104040.0,104030.0,1.08183021]
[1762265278796,0.00078638,104040.0,104030.0,1.0323513]
[1762265278999,0.00178638,104040.0,104030.0,1.08183021]
[1762265284782,0.00178638,104040.0,104030.0,0.73443021]
[1762265285243,0.19402013,104040.0,104030.0,0.15941798]
[1762265285488,0.19402013,104040.0,104030.0,0.15459798]
[1762265285708,0.77488294,104040.0,104030.0,0.00482]
[1762265285928,0.77488294,104040.0,104020.0,0.04272]
[1762265285929,0.19226784,104030.0,104020.0,0.04272]
[1762265286155,0.78556065,104030.0,104020.0,0.04947891]
[1762265286605,0.87338433,104030.0,104020.0,0.04947891]
[1762265286844,0.19227071,104020.0,104010.0,0.05429891]
[1762265287059,0.54129281,104020.0,104010.0,0.25140811]
[1762265287935,0.76897065,104030.0,104010.0,0.25140811]
[1762265288146,0.22767784,104030.0,104020.0,0.04947891]
[1762265288579,0.24426784,104030.0,104020.0,0.04947891]
[1762265289522,0.78556065,104030.0,104020.0,0.05647891]
[1762265289951,0.78656065,104030.0,104020.0,0.26274962]
[1762265290161,0.78656065,104030.0,104020.0,0.07047891]
[1762265291050,0.88113671,104030.0,104020.0,0.07047891]
[1762265291558,0.88113671,104030.0,104020.0,0.021]
[1762265291977,0.24526784,104030.0,104020.0,0.021]
[1762265292188,0.88203972,104030.0,104020.0,0.021]
[1762265292397,0.88203972,104030.0,104020.0,0.014]
[1762265292616,0.20263181,104040.0,104020.0,0.00482]
[1762265292844,0.55600013,104040.0,104030.0,0.19225223]
[1762265293059,0.53302013,104040.0,104030.0,0.24173114]
[1762265293279,0.54961013,104040.0,104030.0,0.24173114]
[1762265293483,0.54961013,104040.0,104030.0,0.04947891]
[1762265293699,1.208459,104040.0,104020.0,0.04672]
[1762265293927,0.78554504,104030.0,104020.0,0.28446962]
[1762265294123,0.78554504,104030.0,104020.0,0.28846962]
[1762265294331,0.57031281,104030.0,104020.0,0.28846962]
[1762265294534,0.22127223,104030.0,104020.0,0.29328962]
[1762265294971,0.22127223,104030.0,104020.0,0.29628962]
[1762265295226,1.07431294,104040.0,104030.0,0.19225223]
[1762265295441,0.53302013,104040.0,104030.0,0.25523114]
[1762265295664,0.19302013,104040.0,104030.0,0.26773114]
[1762265296083,0.19302013,104040.0,104030.0,0.07547891]
[1762265296298,0.20898013,104040.0,104030.0,0.05897891]
[1762265296535,0.20898013,104040.0,104030.0,0.06697891]
[1762265297347,0.20898013,104040.0,104030.0,0.25923114]
[1762265297547,0.75027294,104040.0,104030.0,0.25923114]
[1762265297763,0.75027294,104040.0,104030.0,0.07097891]
[1762265299219,0.75027294,104040.0,104030.0,0.26323114]
[1762265300063,0.75027294,104040.0,104030.0,0.27973114]
[1762265300064,0.54207919,104040.0,104030.0,0.27973114]
[1762265300264,0.00078638,104040.0,104030.0,0.27973114]
[1762265300475,0.00078638,104040.0,104030.0,0.30355114]
[1762265301777,0.00078638,104040.0,104030.0,0.29555114]
[1762265301978,0.19302013,104040.0,104030.0,0.28573114]
[1762265302182,0.75027294,104040.0,104030.0,0.07697891]
[1762265302387,0.77352294,104040.0,104030.0,0.07022]
[1762265302594,0.77352294,104040.0,104030.0,0.004]
[1762265302806,0.77352294,104040.0,104030.0,0.05347891]
[1762265302997,0.77352294,104040.0,104030.0,0.06547891]
[1762265303613,0.23223013,104040.0,104030.0,0.06547891]
[1762265303770,0.77352294,104040.0,104030.0,0.06147891]
[1762265304249,0.77352294,104040.0,104030.0,0.05547891]
[1762265304449,0.96496818,104040.0,104030.0,0.05447891]
[1762265304638,0.96496818,104040.0,104030.0,0.24673114]
[1762265304817,0.23223013,104040.0,104030.0,0.06697891]
[1762265305143,0.23223013,104040.0,104030.0,0.06197891]
[1762265305360,0.23223013,104040.0,104030.0,0.25423114]
[1762265305566,0.23223013,104040.0,104030.0,0.06397891]
[1762265305796,0.23223013,104040.0,104030.0,0.05447891]
[1762265306009,0.96496818,104040.0,104030.0,0.05447891]
[1762265306925,0.96496818,104040.0,104030.0,0.06397891]
[1762265307183,0.23223013,104040.0,104030.0,0.06397891]
[1762265307396,0.00078638,104040.0,104030.0,0.27273114]
[1762265307596,0.00078638,104040.0,104030.0,0.31541114]
[1762265307808,0.00078638,104040.0,104030.0,0.33923114]
[1762265308021,0.19302013,104040.0,104030.0,0.33923114]
[1762265308192,0.19302013,104040.0,104030.0,0.31541114]
[1762265308400,0.19302013,104040.0,104030.0,0.33923114]
[1762265308998,0.23223013,104040.0,104030.0,0.10665891]
[1762265309230,0.96496818,104040.0,104030.0,0.05447891]
[1762265309414,1.15502331,104040.0,104030.0,0.05447891]
[1762265309610,1.06044725,104040.0,104030.0,0.05447891]
[1762265309816,1.06044725,104040.0,104030.0,0.005]
[1762265310908,1.40044725,104040.0,104030.0,0.005]
[1762265313154,0.57223013,104040.0,104030.0,0.005]
[1762265313362,0.57223013,104040.0,104030.0,0.05447891]
[1762265313576,0.53302013,104040.0,104030.0,0.27173114]
[1762265313795,0.53302013,104040.0,104030.0,0.07947891]
[1762265314213,0.53302013,104040.0,104030.0,0.27173114]
[1762265314391,0.54936013,104040.0,104030.0,0.26973114]
[1762265314639,0.54936013,104040.0,104030.0,0.27273114]
[1762265314837,0.54936013,104040.0,104030.0,0.06497891]
[1762265315043,0.57406013,104040.0,104030.0,0.06797891]
[1762265316849,0.54936013,104040.0,104030.0,0.06797891]
[1762265317292,0.57406013,104040.0,104030.0,0.06797891]
[1762265317969,0.57406013,104040.0,104030.0,0.05847891]
[1762265318172,1.30679818,104040.0,104030.0,0.05847891]
[1762265318403,1.38461302,104040.0,104030.0,0.05847891]
[1762265318644,1.30679818,104040.0,104030.0,0.05847891]
[1762265318864,0.34078638,104040.0,104030.0,0.27573114]
[1762265319090,0.53302013,104040.0,104030.0,0.27573114]
[1762265319561,0.53302013,104040.0,104030.0,0.26973114]
[1762265320001,0.34078638,104040.0,104030.0,0.26973114]
[1762265320212,0.53302013,104040.0,104030.0,0.26973114]
[1762265320603,0.54936013,104040.0,104030.0,0.07447891]
[1762265320799,0.54936013,104040.0,104030.0,0.26873114]
[1762265321018,0.53302013,104040.0,104030.0,0.26673114]
[1762265321213,0.53302013,104040.0,104030.0,0.27073114]
[1762265321439,0.34078638,104040.0,104030.0,0.29755114]
[1762265321873,0.00078638,104040.0,104030.0,0.29755114]
[1762265322599,0.00078638,104040.0,104030.0,0.29355114]
[1762265322799,0.00078638,104040.0,104030.0,0.25007223]
[1762265323003,0.00078638,104040.0,104030.0,0.29955114]
[1762265330103,0.00078638,104040.0,104030.0,0.25007223]
[1762265330319,0.00078638,104040.0,104030.0,0.29955114]
[1762265333569,0.00078638,104040.0,104030.0,0.25007223]
[1762265333776,0.00078638,104040.0,104030.0,0.29955114]
[1762265335164,0.00078638,104040.0,104030.0,0.29655114]
[1762265335344,0.00078638,104040.0,104030.0,0.29055114]
[1762265335551,0.00078638,104040.0,104030.0,0.30155114]
[1762265336590,0.00078638,104040.0,104030.0,0.30555114]
[1762265337399,0.00078638,104040.0,104030.0,0.84555114]
[1762265337620,0.00078638,104040.0,104030.0,0.79607223]
[1762265337818,0.00078638,104040.0,104030.0,0.84555114]
[1762265338266,0.00078638,104040.0,104030.0,0.79607223]
[1762265338421,0.00078638,104040.0,104030.0,0.84555114]
[1762265341274,0.00078638,104040.0,104030.0,0.64555114]
[1762265341477,0.00078638,104040.0,104030.0,0.60007223]
[1762265341680,0.00078638,104040.0,104030.0,0.27885223]
[1762265341882,0.00078638,104040.0,104030.0,0.30229223]
[1762265343369,0.00078638,104040.0,104030.0,0.34777114]
[1762265343992,0.00078638,104040.0,104030.0,0.29829223]
[1762265344201,0.00078638,104040.0,104030.0,0.34777114]
[1762265344622,0.00078638,104040.0,104030.0,0.29829223]
[1762265344847,0.00078638,104040.0,104030.0,0.34777114]
[1762265348823,0.00078638,104040.0,104030.0,0.27485223]
[1762265349057,0.19302013,104040.0,104030.0,0.32433114]
[1762265349930,0.00078638,104040.0,104030.0,0.34777114]
[1762265350769,0.19302013,104040.0,104030.0,0.32433114]
[1762265351186,0.00078638,104040.0,104030.0,0.32433114]
[1762265351385,0.00078638,104040.0,104030.0,0.34777114]
[1762265351587,0.00078638,104040.0,104030.0,0.33677114]
[1762265351786,0.19302013,104040.0,104030.0,0.33677114]
[1762265351998,0.19302013,104040.0,104030.0,0.32033114]
[1762265352200,0.19302013,104040.0,104030.0,0.31633114]
[1762265352658,0.20816013,104040.0,104030.0,0.30383114]
[1762265352871,0.23118013,104040.0,104030.0,0.30383114]
[1762265353073,0.23118013,104040.0,104030.0,0.11157891]
[1762265353246,0.23118013,104040.0,104030.0,0.10207891]
[1762265353678,0.23118013,104040.0,104030.0,0.05947891]
[1762265354437,1.49397331,104040.0,104030.0,0.01]
[1762265354811,1.33278483,104040.0,104030.0,0.01]
[1762265355026,1.33278483,104040.0,104030.0,0.25173114]
[1762265355231,1.33278483,104040.0,104030.0,0.24473114]
[1762265355439,1.30391818,104040.0,104030.0,0.24173114]
[1762265355872,1.30391818,104040.0,104030.0,0.05147891]
[1762265356069,0.57118013,104040.0,104030.0,0.05147891]
[1762265356681,0.57118013,104040.0,104030.0,0.05647891]
[1762265356879,1.49397331,104040.0,104030.0,0.05647891]
[1762265357086,1.49397331,104040.0,104030.0,0.007]
[1762265357571,1.52284148,104040.0,104030.0,0.007]
[1762265357757,1.52284148,104040.0,104030.0,0.002]
[1762265358163,1.52284148,104040.0,104030.0,0.004]
[1762265358590,1.42826542,104040.0,104030.0,0.002]
[1762265358996,1.42826542,104040.0,104030.0,0.003]
[1762265359421,1.42574892,104040.0,104030.0,0.003]
[1762265364923,1.46441642,104040.0,104030.0,0.003]
[1762265365164,0.19230769,104000.0,103990.0,0.24662433]
[1762265365372,0.02686,104000.0,103990.0,0.24662433]
[1762265365577,0.01147,104010.0,104000.0,0.2417866]
[1762265365776,0.01147,104010.0,104000.0,0.2581866]
[1762265365977,0.2429492,104010.0,104000.0,0.04947891]
[1762265366192,0.2429492,104010.0,103990.0,0.24662073]
[1762265366387,0.2429492,104010.0,104000.0,0.24227254]
[1762265366388,0.78442133,104010.0,104000.0,0.24227254]
[1762265366818,0.2037592,104010.0,104000.0,0.26867254]
[1762265367015,0.2429492,104010.0,104000.0,0.25227254]
[1762265367834,0.2429492,104010.0,104000.0,0.26867254]
[1762265367835,0.01147,104010.0,104000.0,0.26867254]
[1762265368009,0.01147,104010.0,104000.0,0.26567254]
[1762265368593,0.2037592,104010.0,104000.0,0.26567254]
[1762265368977,0.2037592,104010.0,104000.0,0.26867254]
[1762265369381,0.01147,104010.0,104000.0,0.26867254]
[1762265370004,1.11862637,104020.0,104010.0,0.1922892]
[1762265370236,1.11862637,104020.0,104010.0,0.24176811]
[1762265370439,1.13401637,104020.0,104010.0,0.24176811]
[1762265370735,1.13401637,104020.0,104010.0,0.04947891]
[1762265371339,1.13401637,104020.0,104010.0,0.24476811]
[1762265371540,1.13401637,104020.0,104010.0,0.24676811]
[1762265371758,1.13401637,104020.0,104010.0,0.05447891]
[1762265372544,1.13401637,104020.0,104010.0,0.24676811]
[1762265373709,1.13401637,104020.0,104010.0,0.05447891]
[1762265374524,1.13401637,104020.0,104010.0,0.24676811]
[1762265375427,1.13401637,104020.0,104010.0,0.05447891]
[1762265376263,1.13401637,104020.0,104010.0,0.24676811]
[1762265376850,0.93213213,104020.0,104010.0,0.24676811]
[1762265377351,1.12440284,104020.0,104010.0,0.24676811]
[1762265377582,1.12440284,104020.0,104010.0,0.05447891]
[1762265378422,1.53569721,104020.0,104010.0,0.24676811]
[1762265378629,1.53569721,104020.0,104010.0,0.05447891]
[1762265378886,1.63027327,104020.0,104010.0,0.005]
[1762265379090,2.10665652,104020.0,104010.0,0.005]
[1762265379289,2.13553147,104020.0,104010.0,0.005]
[1762265379692,2.13553147,104020.0,104010.0,0.002]
[1762265379896,2.13553147,104020.0,104010.0,0.004]
[1762265380547,2.17421947,104020.0,104010.0,1e-08]
[1762265380859,0.1922892,104010.0,104000.0,0.00048594]
[1762265381082,2.24054208,104010.0,104000.0,0.00048594]
[1762265381295,2.24953286,104010.0,104000.0,0.00048594]
[1762265381830,2.25953285,104010.0,104000.0,0.00048594]
[1762265383315,1.7831496,104010.0,104000.0,0.00048594]
[1762265385057,1.67857355,104010.0,104000.0,0.00048594]
[1762265386426,1.70745387,104010.0,104000.0,0.00048594]
[1762265387243,0.75468737,104010.0,104000.0,0.00048594]
[1762265387477,1.70745387,104010.0,104000.0,0.00048594]
[1762265388723,0.75468737,104010.0,104000.0,0.00048594]
[1762265388926,1.15451152,104010.0,104000.0,0.00048594]
[1762265389125,1.05903245,104010.0,104000.0,0.24227254]
[1762265389245,0.05036,104010.0,104000.0,0.24227254]
[1762265389444,0.50339325,104010.0,104000.0,0.24227254]
[1762265389652,0.70292396,104020.0,104010.0,0.1922892]
[1762265389895,0.70292396,104020.0,104010.0,0.24176811]
[1762265390164,1.05827396,104020.0,104010.0,0.24176811]
[1762265390300,0.58189071,104020.0,104010.0,0.24176811]
[1762265390501,0.58189071,104020.0,104010.0,0.04947891]
[1762265390896,0.1922892,104010.0,104000.0,0.05296485]
[1762265391121,0.2076392,104010.0,104000.0,0.24527254]
[1762265391326,0.2076392,104010.0,104000.0,0.04996485]
[1762265391523,0.2076392,104010.0,104000.0,0.24227254]
[1762265392312,0.2076392,104010.0,104000.0,0.04996485]
[1762265392531,0.78951653,104010.0,104000.0,0.00048594]
[1762265392737,0.77172188,104010.0,104000.0,0.05596485]
[1762265393375,0.77172188,104010.0,104000.0,0.05796485]
[1762265393723,0.77172188,104010.0,104000.0,0.05596485]
[1762265393896,0.77172188,104010.0,104000.0,0.04996485]
[1762265394134,0.77172188,104010.0,104000.0,0.05096485]
[1762265394340,0.77172188,104010.0,104000.0,0.05396485]
[1762265395909,1.14774906,104010.0,104000.0,0.05396485]
[1762265396111,1.14774906,104010.0,104000.0,0.00448594]
[1762265400591,1.11172188,104010.0,104000.0,0.00448594]
[1762265400812,1.11172188,104010.0,104000.0,0.05396485]
[1762265401255,0.5322892,104010.0,104000.0,0.26220254]
[1762265401458,0.5476392,104010.0,104000.0,0.06989485]
[1762265401660,0.5704392,104010.0,104000.0,0.05396485]
[1762265401868,0.5704392,104010.0,104000.0,0.24627254]
[1762265402082,0.5476392,104010.0,104000.0,0.24627254]
[1762265402285,0.5476392,104010.0,104000.0,0.05396485]
[1762265402930,0.5704392,104010.0,104000.0,0.05396485]
[1762265404980,1.11172188,104010.0,104000.0,0.05396485]
[1762265405314,1.20629794,104010.0,104000.0,0.05396485]
[1762265405947,0.66501526,104010.0,104000.0,0.05396485]
[1762265406873,1.20629794,104010.0,104000.0,0.05396485]
[1762265407253,1.20629794,104010.0,104000.0,0.00448594]
[1762265408167,1.20629794,104010.0,104000.0,0.00148594]
[1762265408552,1.20629794,104010.0,104000.0,0.00248594]
[1762265409205,0.34,104010.0,104000.0,0.21072363]
[1762265409407,0.57261425,104020.0,104010.0,0.04947891]
[1762265409609,0.57261425,104020.0,104010.0,0.25126811]
[1762265409767,0.55909071,104020.0,104010.0,0.25126811]
[1762265410159,0.58189071,104020.0,104010.0,0.25126811]
[1762265410820,0.58189071,104020.0,104010.0,0.25226811]
[1762265411032,0.58189071,104020.0,104010.0,0.003]
[1762265411232,0.58189071,104020.0,104010.0,0.05147891]
[1762265411647,0.58189071,104020.0,104010.0,0.05747891]
[1762265411996,0.58189071,104020.0,104010.0,0.24976811]
[1762265412211,0.58189071,104020.0,104010.0,0.05747891]
[1762265412415,1.05823741,104020.0,104010.0,0.05747891]
[1762265413064,1.05823741,104020.0,104010.0,0.24976811]
[1762265413711,1.05823741,104020.0,104010.0,0.05747891]
[1762265416539,1.05823741,104020.0,104010.0,0.05724116]
[1762265416750,1.05823741,104020.0,104010.0,0.24953036]
[1762265417378,1.05823741,104020.0,104010.0,0.05724116]
[1762265418951,1.53458411,104020.0,104010.0,0.05724116]
[1762265419433,1.53458411,104020.0,104010.0,0.00776225]
[1762265419617,1.53458411,104020.0,104010.0,0.05724116]
[1762265419832,1.62916017,104020.0,104010.0,0.00776225]
[1762265420045,2.10550687,104020.0,104010.0,0.00776225]
[1762265420257,2.13438132,104020.0,104010.0,0.00776225]
[1762265420671,0.1922892,104010.0,104000.0,0.00048594]
[1762265420880,0.80431497,104010.0,104000.0,0.00048594]
[1762265421080,0.80431497,104010.0,104000.0,0.19279363]
[1762265421289,1.07312186,104020.0,104000.0,0.25883254]
[1762265421492,1.07312186,104020.0,104010.0,0.24476811]
[1762265421493,0.57261742,104020.0,104010.0,0.24476811]
[1762265421695,1.02008967,104020.0,104010.0,0.24476811]
[1762265421897,1.03612967,104020.0,104010.0,0.24476811]
[1762265422126,1.03612967,104020.0,104010.0,0.24576811]
[1762265422878,1.03612967,104020.0,104010.0,0.24276811]
[1762265423081,1.03612741,104020.0,104010.0,0.24276811]
[1762265424020,1.03612741,104020.0,104010.0,0.24576811]
[1762265424159,0.35147,104020.0,104010.0,0.26232811]
[1762265424363,1.08272981,104030.0,104020.0,0.24174962]
[1762265424564,0.60638311,104030.0,104020.0,0.04947891]
[1762265424800,1.09876981,104030.0,104020.0,0.04947891]
[1762265425326,0.19227071,104020.0,104010.0,0.004]
[1762265425567,0.68465741,104020.0,104010.0,0.24576811]
[1762265425737,0.68465741,104020.0,104010.0,0.24476811]
[1762265425950,0.68465741,104020.0,104010.0,0.05247891]
[1762265426458,0.20831071,104020.0,104010.0,0.04947891]
[1762265426661,0.20831071,104020.0,104010.0,0.05047891]
[1762265427666,0.20831071,104020.0,104010.0,0.24576811]
[1762265427908,0.20831071,104020.0,104010.0,0.05347891]
[1762265428296,0.19227071,104020.0,104010.0,0.26232811]
[1762265428491,0.60615767,104030.0,104020.0,0.24174962]
[1762265428492,0.60614085,104030.0,104020.0,0.24174962]
[1762265428723,0.54372223,104030.0,104020.0,0.24174962]
[1762265428934,0.58392223,104030.0,104020.0,0.24174962]
[1762265429100,0.58392223,104030.0,104020.0,0.04947891]
[1762265429503,0.55976223,104030.0,104020.0,0.24174962]
[1762265429736,0.54372223,104030.0,104020.0,0.25830962]
[1762265429946,0.55976223,104030.0,104020.0,0.24174962]
[1762265430145,0.55976223,104030.0,104020.0,0.24274962]
[1762265431059,0.58242223,104030.0,104020.0,0.24274962]
[1762265431197,0.21976223,104030.0,104020.0,0.24274962]
[1762265431812,0.24242223,104030.0,104020.0,0.24274962]
[1762265432014,0.24242223,104030.0,104020.0,0.05047891]
[1762265432265,0.21976223,104030.0,104020.0,0.24274962]
[1762265432481,0.01147,104030.0,104020.0,0.25851962]
[1762265432705,0.60298401,104040.0,104030.0,0.04947891]
[1762265433164,0.61888401,104040.0,104030.0,0.04947891]
[1762265433906,1.35154172,104040.0,104030.0,0.04947891]
[1762265434125,1.35354172,104040.0,104030.0,0.04947891]
[1762265435104,1.35154172,104040.0,104030.0,0.04947891]
[1762265435531,1.35254172,104040.0,104030.0,0.04947891]
[1762265435950,0.19227071,104020.0,104010.0,0.20189999]
[1762265436152,0.20368071,104020.0,104010.0,0.2513789]
[1762265436614,0.20368071,104020.0,104010.0,0.2585389]
[1762265436945,0.20368071,104020.0,104010.0,0.24892811]
[1762265437147,0.20367908,104030.0,104020.0,0.24174962]
[1762265437554,0.24223908,104030.0,104020.0,0.24174962]
[1762265438338,0.24223908,104030.0,104020.0,0.25124962]
[1762265438847,0.24223908,104030.0,104020.0,0.25424962]
[1762265439376,0.01141,104030.0,104020.0,0.22054071]
[1762265439681,0.58032401,104040.0,104030.0,0.24173114]
[1762265439869,0.55145531,104040.0,104030.0,0.25750114]
[1762265440264,0.35134,104040.0,104030.0,0.25750114]
[1762265440721,0.54357375,104040.0,104030.0,0.25750114]
[1762265440872,0.35134,104040.0,104030.0,0.25750114]
[1762265441275,0.04126467,104050.0,104040.0,0.19223375]
[1762265441484,0.23595955,104060.0,104050.0,0.04947891]
[1762265441684,0.23595955,104060.0,104050.0,0.24169419]
[1762265441885,0.25185955,104060.0,104050.0,0.24885419]
[1762265442128,0.2036068,104060.0,104050.0,0.26462419]
[1762265442366,0.37021576,104070.0,104050.0,0.28844419]
[1762265442567,0.3414488,104070.0,104060.0,0.04947891]
[1762265442897,0.6973488,104070.0,104060.0,0.04947891]
[1762265443319,0.6973488,104070.0,104060.0,0.24167571]
[1762265443521,0.6973488,104070.0,104060.0,0.04947891]
[1762265444823,0.7023488,104070.0,104060.0,0.04947891]
[1762265445435,0.6983488,104070.0,104060.0,0.04947891]
[1762265445640,0.6993488,104070.0,104060.0,0.04947891]
[1762265448648,0.19221528,104050.0,104040.0,0.29147128]
[1762265449052,0.95982451,104060.0,104050.0,0.04947891]
[1762265449473,0.97656576,104060.0,104050.0,0.04947891]
[1762265450032,0.24390805,104060.0,104050.0,0.04947891]
[1762265450234,0.22047805,104060.0,104050.0,0.24169419]
[1762265450653,0.68021007,104060.0,104050.0,0.25789419]
[1762265450867,0.68021007,104060.0,104050.0,0.04947891]
[1762265450868,0.71990007,104060.0,104050.0,0.04947891]
[1762265451489,0.71990007,104060.0,104050.0,0.05047891]
[1762265453506,0.71990007,104060.0,104050.0,0.24269419]
[1762265454553,0.24390805,104060.0,104050.0,0.001]
[1762265454768,0.71990007,104060.0,104050.0,0.24269419]
[1762265455004,0.71990007,104060.0,104050.0,0.05047891]
[1762265455158,0.81447613,104060.0,104050.0,0.001]
[1762265455412,0.84333872,104060.0,104050.0,0.001]
[1762265456720,0.86129417,104060.0,104050.0,0.001]
[1762265457176,0.76672155,104060.0,104050.0,0.001]
[1762265457381,0.74876266,104060.0,104050.0,0.05047891]
[1762265459489,0.74826266,104060.0,104050.0,0.05047891]
[1762265461123,1.2422211,104060.0,104050.0,0.001]
[1762265461448,1.62190912,104060.0,104050.0,0.001]
[1762265461642,0.66824425,104030.0,104020.0,0.04947891]
[1762265461796,0.69464425,104030.0,104020.0,0.04947891]
[1762265462008,0.1922892,104010.0,104000.0,0.04947891]
[1762265462211,0.69608122,104010.0,104000.0,0.04947891]
[1762265462414,0.19230769,104000.0,103990.0,0.00716]
[1762265462625,0.70798971,104000.0,103990.0,0.00716]
[1762265462825,0.70798971,104000.0,103990.0,0.05712485]
[1762265463089,0.70798971,104000.0,103990.0,0.04996485]
[1762265463950,0.70798971,104000.0,103990.0,0.05196485]
[1762265464359,0.70798971,104000.0,103990.0,0.04996485]
[1762265464571,0.96522282,104000.0,103990.0,0.05096485]
[1762265464979,0.23199769,104000.0,103990.0,0.05096485]
[1762265465188,0.96522282,104000.0,103990.0,0.05096485]
[1762265465732,0.96522282,104000.0,103990.0,0.05396485]
[1762265465952,0.96522282,104000.0,103990.0,0.00448594]
[1762265466182,0.23199769,104000.0,103990.0,0.00448594]
[1762265466345,0.96522282,104000.0,103990.0,0.00448594]
[1762265468045,1.05979888,104000.0,103990.0,0.00448594]
[1762265468270,0.96522282,104000.0,103990.0,0.00448594]
[1762265468969,1.30522282,104000.0,103990.0,0.00448594]
[1762265469625,0.57199769,104000.0,103990.0,0.00448594]
[1762265470077,1.30522282,104000.0,103990.0,0.00448594]
[1762265470509,1.39979888,104000.0,103990.0,0.00348594]
[1762265471171,1.39979888,104000.0,103990.0,0.00048594]
[1762265472716,1.30522282,104000.0,103990.0,0.00048594]
[1762265473932,0.57199769,104000.0,103990.0,0.00048594]
[1762265474173,0.57199769,104000.0,103990.0,0.04996485]